Cogmind - Beta 11.1 @@@ ROGUE MODE // 2022.05.10 @ 21:50:30 // AFD2020/Player2 Player: aoemica Result: Destroyed by L-61 Swordsman with Power Sword Performance ------------- Evolutions (6) 3000 Regions Visited (23) 4600 Robots Destroyed (315) 1575 Value Destroyed (12530) 12530 Prototype IDs (77) 1540 Alien Tech Used (0) 0 Bonus (10410) 10410 TOTAL SCORE: 33655 Bonus ------- Triggered High Security 500 High Alert Combat Kills 3686 Follower Combat Kills 6870 Network Hubs Disabled 200 Aligned with FarCom 300 Met Data Miner 300 Met Warlord at Base 500 MAIN.C Attacked Warlord 500 Warlord Defense Kill 1096 Met R17 at Cetus 500 Friendly Fire -4042 Cogmind --------- Core Integrity 0/1150 Matter 11/300 Energy 152/160 System Corruption 9% Temperature Cool (21) Movement Treading (170) Location -4/Factory Parts ------- > --- POWER (1) -------- Light Nuclear Core > --- PROPULSION (6) --- Heavy Siege Treads Centrium Heavy Treads > --- UTILITY (8) ------ Advanced Heat Sink Huge Storage Unit Transport Network Coupler Salvage Targeting Computer Improved Weapon Cycler Centrium Medium Armor Plating > --- WEAPON (4) ------- Gauss Rifle Coil Gun Coil Gun Enhanced Coil Gun > --- INVENTORY (25) --- Vortex Chain Reactor Experimental Matter Compressor (314) Long-range Terrain Scanner Experimental Core Analyzer Improved Armor Integrity Analyzer Improved Weapon Cycler Improved Phase Shifter Improved Phase Shifter Improved Phase Shifter Graphene Brace Sensor Drone Bay (20/20) Firepult High-powered Shotgun Heavy Shock Bomb Launcher Mini Smartbomb Launcher Molecular Deconstructor Peak State ------------ > --- POWER ------------ Reinforced Fission Core > --- PROPULSION ------- Centrium Heavy Treads Centrium Heavy Treads Centrium Heavy Treads > --- UTILITY ---------- Advanced Heat Sink Huge Storage Unit Salvage Targeting Computer Advanced Targeting Computer Improved Weapon Cycler Centrium Medium Armor Plating Graphene Brace Experimental Shield Generator > --- WEAPON ----------- Precision Assault Rifle Coil Gun Improved KE Penetrator Advanced KE Penetrator > --- INVENTORY -------- Vortex Chain Reactor Centrium Heavy Treads Experimental Matter Compressor Transport Network Coupler Experimental Core Analyzer Improved Weapon Cycler Transmission Jammer Centrium Medium Armor Plating Improved Powered Armor Improved Hacking Suite Improved Field Recycling Unit Sensor Drone Bay Firepult Gauss Rifle Gauss Rifle Flak Gun Heavy Shock Bomb Launcher Mini Smartbomb Launcher Molecular Deconstructor [Rating: 143] Favorites ----------- Power Heavy Ion Engine Engine Heavy Ion Engine Power Core Reinforced Fission Core Reactor Quantum Reactor Propulsion Light Treads Treads Light Treads Leg Aluminum Leg Utility Salvage Targeting Computer Device Weapon Cycler Storage Huge Storage Unit Processor Salvage Targeting Computer Hackware Improved Hacking Suite Protection Centrium Medium Armor Plating Weapon Improved Assault Rifle Energy Gun Small Laser Ballistic Gun Improved Assault Rifle Ballistic Cannon Light Cannon Launcher Mini Smartbomb Launcher Special Weapon Molecular Deconstructor Special Melee Weapon Datajack Build | -11 -10 -10 -9 -9 -9 -8 -8 -7 -7 -7 -7 -6 -6 -6 -6 -6 -6 -5 -5 -5 -5 -4 -4 ------- Run | Scr Mat Min Mat Min Exi Min Mat Fac Low Low Dat Pro Fac Ext Cet Arc Hub Fac Upp Upp War Pro Fac Slots Evolved 12 | . . . 2 . . . 2 2 . . . . 2 . . . . 2 . . . . 2 Power . | . . . . . . . . . . . . . . . . . . . . . . . . Propulsion 4 | . . . 1 . . . . . . . . . 1 . . . . . . . . . 2 Utility 6 | . . . 1 . . . 1 1 . . . . 1 . . . . 2 . . . . . Weapon 2 | . . . . . . . 1 1 . . . . . . . . . . . . . . . Parts Attached 251 | . 8 9 17 2 7 2 25 25 4 4 . 7 18 10 12 2 5 19 15 11 6 9 34 Power 14 | . 1 1 1 . 1 . 1 1 . . . . 1 . 1 . . 2 1 . 1 . 2 Engine 7 | . 1 1 1 . 1 . 1 1 . . . . 1 . . . . . . . . . . Core 3 | . . . . . . . . . . . . . . . . . . 1 . . 1 . 1 Reactor 4 | . . . . . . . . . . . . . . . 1 . . 1 1 . . . 1 Propulsion 43 | . 3 . 9 . . . 9 5 1 1 . 1 2 5 3 . . . . . . . 4 Treads 42 | . 2 . 9 . . . 9 5 1 1 . 1 2 5 3 . . . . . . . 4 Leg 1 | . 1 . . . . . . . . . . . . . . . . . . . . . . Wheel . | . . . . . . . . . . . . . . . . . . . . . . . . Hover . | . . . . . . . . . . . . . . . . . . . . . . . . Flight . | . . . . . . . . . . . . . . . . . . . . . . . . Utility 99 | . 3 3 1 . 3 2 8 6 1 2 . 6 8 5 4 . 4 8 10 6 5 6 8 Device 70 | . 2 2 1 . 1 . 1 4 . 2 . 6 7 4 1 . 4 7 9 5 4 6 4 Storage 5 | . 1 . . . 1 . 1 . . . . . . 1 . . . . . . 1 . . Processor 5 | . . . . . . 1 1 . . . . . . . . . . 1 . 1 . . 1 Hackware 1 | . . . . . . . . . . . . . . . . . . . . . . . 1 Protection 18 | . . 1 . . 1 1 5 2 1 . . . 1 . 3 . . . 1 . . . 2 Artifact . | . . . . . . . . . . . . . . . . . . . . . . . . Weapon 95 | . 1 5 6 2 3 . 7 13 2 1 . . 7 . 4 2 1 9 4 5 . 3 20 Energy Gun . | . . . . . . . . . . . . . . . . . . . . . . . . Energy Cannon . | . . . . . . . . . . . . . . . . . . . . . . . . Ballistic Gun 73 | . . 2 6 1 2 . 7 9 2 1 . . 6 . 4 2 1 7 2 3 . 3 15 Ballistic Cannon 3 | . 1 2 . . . . . . . . . . . . . . . . . . . . . Launcher 16 | . . 1 . 1 . . . 4 . . . . . . . . . 1 2 2 . . 5 Special Weapon 2 | . . . . . . . . . . . . . 1 . . . . 1 . . . . . Impact Weapon . | . . . . . . . . . . . . . . . . . . . . . . . . Slashing Weapon . | . . . . . . . . . . . . . . . . . . . . . . . . Piercing Weapon . | . . . . . . . . . . . . . . . . . . . . . . . . Special Melee Weapon 1 | . . . . . 1 . . . . . . . . . . . . . . . . . . Unidentified Prototypes 8 | . . 1 1 . . . . . . . . . 1 . 2 . . 1 . . 1 . 1 Corrupted Parts 1 | . . . . . . . . . . . . . . . . . . . . . . . 1 System Corruption 4 | . . . . . . . . . . . . . . . . . . . . . . . 4 Parts Lost 16 | . . 1 . . . . . . 1 . . . . . . . . 1 . . . . 13 Power 1 | . . . . . . . . . . . . . . . . . . . . . . . 1 Propulsion 4 | . . . . . . . . . . . . . . . . . . . . . . . 4 Utility 5 | . . . . . . . . . . . . . . . . . . . . . . . 5 Weapon 6 | . . 1 . . . . . . 1 . . . . . . . . 1 . . . . 3 Highest Loss Streak 7 | . . 1 . . . . . . 1 . . . . . . . . 1 . . . . 7 To Critical Strikes 2 | . . . . . . . . . 1 . . . . . . . . . . . . . 1 Average Slot Usage (%) 94 | . 99 100 98 100 78 97 99 100 100 100 100 100 99 100 88 86 86 87 87 88 87 87 83 Engine 5 | . 14 14 11 11 9 11 9 7 7 7 7 7 6 6 4 . . . . . . . . Reactor 1 | . . . . . . . . . . . . . . . 1 6 6 5 5 5 2 . 3 Treads 21 | . 19 28 32 33 33 33 27 23 23 23 23 23 26 26 15 13 13 11 11 11 11 11 14 Device 11 | . 13 6 10 11 8 . . 7 7 7 7 7 13 13 13 13 13 18 23 23 22 23 17 Storage 7 | . 14 14 11 11 9 11 9 7 7 7 7 7 6 6 6 6 6 5 5 5 5 5 5 Processor 11 | . . . . . . 5 17 15 15 15 15 15 13 13 13 13 13 15 11 11 11 11 10 Protection 6 | . . 7 11 11 8 14 8 7 7 7 7 7 6 6 6 6 6 5 4 5 5 5 6 Ballistic Gun 24 | . 14 10 20 22 1 22 27 29 30 30 30 30 25 26 25 26 26 22 22 22 23 22 20 Naked Turns . | . . . . . . . . . . . . . . . . . . . . . . . . Heaviest Build 149 | 11 31 38 40 40 48 46 106 110 110 110 109 122 116 114 128 130 131 142 148 148 147 149 143 Greatest Support 240 | 20 40 40 60 60 60 60 60 66 64 64 62 62 90 103 160 160 160 160 160 160 160 160 240 Greatest Overweight (x) 1 | . . . . . . . 1 1 1 1 1 1 1 1 1 . . . . . . . . Average Overweight (x) . | . . . . . . . . 1 1 1 1 1 1 1 . . . . . . . . . Largest Inventory Capacity 25 | . 15 15 15 15 15 15 25 25 25 25 25 25 25 25 25 25 25 25 25 25 25 25 25 Average Capacity 22 | . 11 15 15 15 13 15 22 25 25 25 25 25 25 25 25 25 25 25 25 25 25 25 25 Most Carried 25 | . 15 15 15 15 15 15 25 25 25 25 25 25 25 25 25 25 25 25 25 25 25 25 25 Average Carried 22 | . 11 14 14 15 12 14 21 24 24 24 25 25 24 25 24 25 25 24 24 24 24 25 24 Final Capacity 25 | 8 15 15 15 15 15 15 25 25 25 25 25 25 25 25 25 25 25 25 25 25 25 25 25 Final Carried 25 | 6 15 15 15 15 15 15 25 25 25 25 25 25 25 25 25 25 25 25 25 25 25 25 19 Class Distribution -------------------- 28% | Gunner 25% | Scavenger-Tank 14% | Mutant 10% | Scavenger-Mutant 9% | Skirmisher 4% | Commander-Gunner 4% | Scavenger-Gunner Dominant Class ---------------- Scavenger-Mutant | -10/Materials Scavenger-Mutant | -10/Mines Mutant | -9/Materials Mutant | -9/Mines Mutant | -9/Exiles Mutant | -8/Mines Skirmisher | -8/Materials Gunner | -7/Factory Gunner | -7/Lower Caves Gunner | -7/Lower Caves Gunner | -7/Data Miner Gunner | -6/Proximity Caves Scavenger-Gunner | -6/Factory Commander-Gunner | -6/Extension Scavenger-Tank | -6/Cetus Scavenger-Tank | -6/Archives Scavenger-Tank | -6/Hub_04(d) Scavenger-Tank | -5/Factory Scavenger-Tank | -5/Upper Caves Scavenger-Tank | -5/Upper Caves Scavenger-Mutant | -5/Warlord Scavenger-Tank | -4/Proximity Caves Scavenger-Tank | -4/Factory Resources | -11 -10 -10 -9 -9 -9 -8 -8 -7 -7 -7 -7 -6 -6 -6 -6 -6 -6 -5 -5 -5 -5 -4 -4 ----------- Run | Scr Mat Min Mat Min Exi Min Mat Fac Low Low Dat Pro Fac Ext Cet Arc Hub Fac Upp Upp War Pro Fac Matter Collected 12364 | 200 275 195 477 75 . 194 955 1057 570 148 . 233 598 178 430 70 252 1008 581 556 972 167 3173 Remotely . | . . . . . . . . . . . . . . . . . . . . . . . . Salvage Created 16210 | . 342 160 778 189 . 101 1187 1422 739 149 . 412 70 190 401 81 344 1912 744 330 597 227 5835 Parts 731 | . 25 10 44 19 . 5 69 73 23 7 . 23 5 7 24 5 15 80 19 19 26 10 223 Haulers Intercepted 17 | . 1 . 2 . . . 3 2 . . . . . . . . . 4 . . . . 5 Recyclers Shooed 11 | . 1 . 2 . . . 3 1 . . . . . . . . . 4 . . . . . Parts Field Recycled 17 | . . . . . . . . . . . . . . 1 . . . 8 4 4 . . . Retrieved Matter 191 | . . . . . . . . . . . . . . 40 . . . 59 34 58 . . . Parts Self-Destructed 227 | . . . . . . . . . 20 12 . 27 . . . . . . 23 13 123 9 . Prevented 7 | . . . . . . . . . . . . . . . . . . . . . 7 . . Kills | -11 -10 -10 -9 -9 -9 -8 -8 -7 -7 -7 -7 -6 -6 -6 -6 -6 -6 -5 -5 -5 -5 -4 -4 ------- Run | Scr Mat Min Mat Min Exi Min Mat Fac Low Low Dat Pro Fac Ext Cet Arc Hub Fac Upp Upp War Pro Fac Combat Hostiles Destroyed 232 | . 9 6 10 8 . 2 14 24 13 3 . 10 1 3 9 1 3 16 13 11 9 3 64 Guns 192 | . 7 1 9 5 . 2 14 20 13 3 . 10 1 3 9 1 3 16 9 1 9 3 53 Cannons 6 | . 2 3 1 . . . . . . . . . . . . . . . . . . . . AOE 33 | . . 2 . 3 . . . 4 . . . . . . . . . . 4 10 . . 10 Classes Destroyed 21 | . 5 4 1 1 . . . 3 2 . . . 1 . . . . . . . 3 . 1 Worker 21 | . . 1 4 1 . 2 2 2 . . . . . . . . . 2 . . . . 7 Builder 18 | . . . 2 1 . . 3 1 . . . . . . . . . 3 . . . . 8 Tunneler 3 | . . . . 1 . . 1 . . . . . . . . . . . . . . . 1 Hauler 17 | . 1 . 2 . . . 3 2 . . . . . . . . . 4 . . . . 5 Recycler 14 | . . 1 2 . . . 1 . . . . . . . . . 1 4 . . . . 5 Mechanic 1 | . . . . . . . . 1 . . . . . . . . . . . . . . . Operator 5 | . 1 . 1 . . . 1 . . . . . . . . . . 1 . . . . 1 Watcher 11 | . 2 . 1 . . . 3 1 . . . . . . . . . . . . . . 4 Swarmer 45 | . 4 . 2 6 . 1 2 2 1 . . 5 . . 5 . . 7 . 3 . . 7 Grunt 105 | . 5 2 6 2 . 1 9 13 5 2 . 4 . 2 . . . 5 8 2 6 2 31 Brawler 11 | . . . . . . . . 1 1 . . . . 1 . . . 1 3 1 . . 3 Duelist 6 | . . . . . . . . . . . . . . . . . . . 1 . . . 5 Protector 3 | . . . . . . . . . . . . . . . . . . . . . . . 3 Sentry 17 | . . 1 3 . . . 3 2 1 1 . 1 . . . 1 2 . 1 . . . 1 Demolisher 1 | . . . . . . . . . . . . . . . . . . . . . 1 . . Hunter 13 | . . . . . . . . . . . . . 1 . 2 . 1 . . . . 1 8 Programmer 15 | . . . . . . . . 6 . . . . . . . . . 3 . . . . 6 Behemoth 2 | . . . . . . . . . . . . . . . . . . . . . 1 . 1 Cetus Guard 2 | . . . . . . . . . . . . . . . 2 . . . . . . . . Striker 1 | . . . . . . . . . . . . . . . . . . . . . 1 . . Assembled 8 | . . 3 . . . . . . . . . . . . . . . . . 5 . . . Thug 1 | . . . . . . . . . . . . . . . . . . . . 1 . . . Savage 2 | . . . . . . . . . 1 . . . . . . . . . . 1 . . . Butcher 3 | . . . . . . . . . 3 . . . . . . . . . . . . . . Mutant 2 | . . . . . . . . . 1 . . . . . . . . . . 1 . . . Best Kill Streak 10 | . 2 3 3 6 . 1 8 5 4 2 . 5 1 2 4 1 1 10 7 5 5 2 10 Combat Bots Only 9 | . 2 3 2 5 . 1 5 5 4 2 . 5 1 2 4 1 1 4 4 5 5 2 9 Max Kills in Single Turn 4 | . 1 1 2 4 . 1 2 2 1 1 . 2 1 1 2 1 1 2 2 4 1 1 3 Gunslinging 1 | . . . . . . . . 1 . . . 1 . . . . . . . . . . 1 Exploded 4 | . . 1 . 3 . . . 2 . . . . . . . . . . 2 4 . . 3 Melee . | . . . . . . . . . . . . . . . . . . . . . . . . Uniques/NPCs Destroyed 1 | . . 1 . . . . . . . . . . . . . . . . . . . . . YI-UF0 (-10/Mines) Combat | -11 -10 -10 -9 -9 -9 -8 -8 -7 -7 -7 -7 -6 -6 -6 -6 -6 -6 -5 -5 -5 -5 -4 -4 -------- Run | Scr Mat Min Mat Min Exi Min Mat Fac Low Low Dat Pro Fac Ext Cet Arc Hub Fac Upp Upp War Pro Fac Damage Taken 11866 | . 195 473 392 94 . 25 749 890 422 141 . 17 391 41 750 19 169 685 161 143 324 282 5503 Core 816 | . . 97 55 8 . . 82 46 32 . . . 42 . 12 . 6 19 33 10 18 32 324 Absorbed by Shields 1133 | . . . . . . . . . . . . . 16 4 160 4 96 35 58 54 117 104 485 Reduced by Siege Mode 246 | . . . . . . . . . . . . . . . 30 . . 7 8 . . . 201 Core Remaining (%) 65 | 100 . 18 . . . 62 69 . . . . 53 . . . . 85 . . . . 72 . Volleys Fired 681 | . 46 14 53 8 . 11 58 56 29 9 . 11 18 6 20 4 13 58 21 21 34 5 186 Largest 4 | . 2 2 2 2 . 2 3 4 4 4 . 4 4 4 4 4 4 4 4 4 4 4 4 Hottest 129 | . 60 70 58 46 . 46 74 102 102 102 . 97 97 104 104 104 122 129 129 129 124 126 128 Shots Fired 2174 | . 92 26 105 16 . 22 174 207 116 33 . 44 60 24 80 14 52 220 72 33 103 20 661 Gun 2082 | . 73 6 96 15 . 22 174 198 116 33 . 44 56 24 80 14 52 217 68 24 103 20 647 Cannon 46 | . 19 18 9 . . . . . . . . . . . . . . . . . . . . Launcher 39 | . . 2 . 1 . . . 9 . . . . . . . . . . 4 9 . . 14 Special 7 | . . . . . . . . . . . . . 4 . . . . 3 . . . . . Kinetic 2101 | . 65 24 105 15 . 22 174 198 116 33 . 44 56 24 80 14 52 217 68 24 103 20 647 Thermal 27 | . 27 . . . . . . . . . . . . . . . . . . . . . . Explosive 34 | . . 2 . 1 . . . 9 . . . . . . . . . . 4 9 . . 9 Electromagnetic 5 | . . . . . . . . . . . . . . . . . . . . . . . 5 Robot Hit Streak 28 | . 10 9 11 6 . 8 28 13 21 10 . 5 16 25 28 6 18 24 10 14 16 8 26 Robot Miss Streak 6 | . 4 2 3 1 . 4 3 5 4 2 . 2 3 . 4 2 1 4 3 1 3 1 6 Penetration Max 1 | . . . . . . . . 1 1 1 . 1 . . 1 . 1 1 1 . 1 1 1 Secondary Targets 60 | . 1 . 3 . . 1 4 4 3 1 . 3 . . 3 . . 5 . 1 4 . 27 Max Gunslinging Chain 2 | . 1 . 1 . . 1 1 1 1 1 . 1 . . 1 . . 1 . 1 1 . 2 Shots Hit Robots 1427 | . 49 17 74 11 6 13 128 116 76 23 . 24 42 21 58 10 42 132 49 22 68 16 430 Core Hits 717 | . 26 9 30 12 . 6 57 72 24 8 . 15 16 9 34 4 11 54 30 34 27 6 233 Critical Kills 29 | . . . . . . . 1 . . . . 1 . 1 . . . 4 1 . 1 1 19 Critical Parts Destroyed 52 | . . . 1 . . . . . 1 . . . 1 . 1 . 2 11 4 1 6 1 23 Critical Strikes 88 | . 1 . 1 . . . 1 . 1 . . 1 1 1 1 . 2 15 5 1 10 2 45 Destroy 87 | . . . 1 . . . 1 . 1 . . 1 1 1 1 . 2 15 5 1 10 2 45 Blast 1 | . 1 . . . . . . . . . . . . . . . . . . . . . . Melee Attacks 6 | . . . . . 6 . . . . . . . . . . . . . . . . . . Impact . | . . . . . . . . . . . . . . . . . . . . . . . . Slashing . | . . . . . . . . . . . . . . . . . . . . . . . . Piercing . | . . . . . . . . . . . . . . . . . . . . . . . . Sneak Attacks 6 | . . . . . 6 . . . . . . . . . . . . . . . . . . Combat Hostiles . | . . . . . . . . . . . . . . . . . . . . . . . . Follow-up Attacks . | . . . . . . . . . . . . . . . . . . . . . . . . Damage Inflicted 38431 | . 725 381 1301 410 . 203 2295 3291 1410 451 . 357 687 408 1218 141 911 3699 2036 2052 1900 398 14157 Guns 31135 | . 468 75 1120 183 . 187 2189 2157 1410 428 . 357 677 389 1218 141 860 3650 1396 478 1900 398 11454 Cannons 545 | . 192 232 121 . . . . . . . . . . . . . . . . . . . . Explosions 5854 | . . 70 . 207 . . . 1079 . . . . . . . . . . 640 1229 . . 2629 Melee . | . . . . . . . . . . . . . . . . . . . . . . . . Ramming 897 | . 65 4 60 20 . 16 106 55 . 23 . . 10 19 . . 51 49 . 345 . . 74 Kinetic 31468 | . 448 307 1241 183 . 187 2189 2157 1410 428 . 357 677 389 1218 141 860 3650 1396 478 1900 398 11454 Thermal 609 | . 212 . . . . . . . . . . . . . . . . . . 82 . . 315 Explosive 4727 | . . 70 . 207 . . . 1031 . . . . . . . . . . 640 1147 . . 1632 Electromagnetic 730 | . . . . . . . . 48 . . . . . . . . . . . . . . 682 Impact . | . . . . . . . . . . . . . . . . . . . . . . . . Slashing . | . . . . . . . . . . . . . . . . . . . . . . . . Piercing . | . . . . . . . . . . . . . . . . . . . . . . . . Highest Corruption 9 | . . . 2 2 2 2 . 2 2 2 . . . . . . . 2 2 2 2 1 9 Average Corruption 2 | . . . 1 2 2 2 . 1 2 1 . . . . . . . 1 2 2 1 1 3 Corruption Purged 2 | . . . . . . . . . . 2 . . . . . . . . . . . . . Corruption Blocked . | . . . . . . . . . . . . . . . . . . . . . . . . Effects 203 | . . . 5 12 10 13 . 29 35 4 . . . . . . . 6 19 25 1 2 42 Message Errors 58 | . . . 3 4 4 6 . 7 10 1 . . . . . . . 2 7 8 . . 6 Matter Fused 43 | . . . . . 4 2 . 7 9 1 . . . . . . . 1 5 2 . 1 11 Heat Flow Errors 20 | . . . 1 2 1 1 . 2 2 . . . . . . . . 2 2 2 1 . 4 Energy Discharges 23 | . . . . 3 . 2 . 1 2 1 . . . . . . . . 3 1 . 1 9 Parts Rejected 1 | . . . . . . . . . 1 . . . . . . . . . . . . . . Data Loss (minor) 29 | . . . 1 1 . 1 . 5 7 . . . . . . . . . 2 6 . . 6 Data Loss (major) 11 | . . . . 1 . 1 . 1 1 . . . . . . . . . . 5 . . 2 Misfires 7 | . . . . 1 . . . 3 2 . . . . . . . . . . . . . 1 Alerts 4 | . . . . . 1 . . . 1 1 . . . . . . . . . 1 . . . Weapon Failures 7 | . . . . . . . . 3 . . . . . . . . . 1 . . . . 3 Overload Shots . | . . . . . . . . . . . . . . . . . . . . . . . . Overflow Damage 171 | . 8 1 . 15 . . . 23 . 18 . . . . . . . . 6 40 . . 60 Projectiles 8 | . 8 . . . . . . . . . . . . . . . . . . . . . . Explosions 136 | . . 1 . 15 . . . 15 . . . . . . . . . . 6 39 . . 60 Melee 27 | . . . . . . . . 8 . 18 . . . . . . . . . 1 . . . Knockbacks 8 | . 1 1 1 1 . . . 2 . . . . . . . . . 1 . . . . 1 Impact 6 | . . 1 . 1 . . . 2 . . . . . . . . . 1 . . . . 1 Kinetic 2 | . 1 . 1 . . . . . . . . . . . . . . . . . . . . Secondary . | . . . . . . . . . . . . . . . . . . . . . . . . Self-Inflicted Damage 139 | . . . . . . . . . . . . . . . . . . . . . . . 139 Shots 5 | . . . . . . . . . . . . . . . . . . . . . . . 5 Rammed 80 | . 3 . 6 2 . 2 12 7 . 1 . . 1 2 . . 1 4 . 35 . . 4 Targets Rammed 119 | . 31 1 9 3 . 3 15 7 . 1 . . 1 2 . . 1 4 . 36 . . 5 Kicked 28 | . 28 . . . . . . . . . . . . . . . . . . . . . . Crushed 11 | . . 1 3 1 . 1 3 . . . . . . . . . . . . 1 . . 1 Highest Temperature 268 | . 42 69 249 264 219 268 25 170 217 59 . 32 64 68 188 83 245 249 180 148 193 42 246 Average Temperature 49 | . 22 32 43 108 121 140 8 44 74 33 . 24 29 33 71 36 99 34 53 44 38 27 41 Received Heat Transfer 2307 | . 78 33 105 12 . . 198 241 136 51 . . 24 9 30 . 73 90 42 32 30 33 1090 Siege Activations 13 | . . . . . . . . . . . . . . . 1 1 . 4 3 . . . 4 Total Turns 215 | . . . . . . . . . . . . . . . 14 12 . 77 35 . . . 77 Longest Duration 36 | . . . . . . . . . . . . . . . 14 12 . 32 17 . . . 36 Robots Corrupted 1 | . . . . . . . . . . . . . . . . . . . . . . . 1 Combat Hostiles 1 | . . . . . . . . . . . . . . . . . . . . . . . 1 Parts Fried 4 | . . . . . . . . . . . . . . . . . . . . . . . 4 Impact Corruptions 7 | . . . 1 . . . . 1 . 4 . . . . . . . . . 1 . . . Robots Melted . | . . . . . . . . . . . . . . . . . . . . . . . . Combat Hostiles . | . . . . . . . . . . . . . . . . . . . . . . . . Parts Melted 3 | . . . 1 . . . . . . . . . . . . . . . 1 . . . 1 Heat Transferred 876 | . 462 . . . . . . . . . . . . . . . . . . 240 . . 174 Parts Sabotaged . | . . . . . . . . . . . . . . . . . . . . . . . . Parts Stolen . | . . . . . . . . . . . . . . . . . . . . . . . . Parts Stripped . | . . . . . . . . . . . . . . . . . . . . . . . . Power Chain Reactions 5 | . . . . . . . . . . . . . . . . . . . . . . . 5 Missiles Intercepted . | . . . . . . . . . . . . . . . . . . . . . . . . Alert | -11 -10 -10 -9 -9 -9 -8 -8 -7 -7 -7 -7 -6 -6 -6 -6 -6 -6 -5 -5 -5 -5 -4 -4 ------- Run | Scr Mat Min Mat Min Exi Min Mat Fac Low Low Dat Pro Fac Ext Cet Arc Hub Fac Upp Upp War Pro Fac Peak Influence 2923 | . 382 175 918 516 . 225 740 873 . . . . 309 139 424 281 335 703 . . . . 2923 Initial 295 | . . 115 26 295 . . 7 97 . . . . . 79 11 169 . 29 . . . . 91 Average 328 | . 220 91 574 393 . 94 314 207 . . . . 134 44 196 100 222 232 . . . . 1254 Maximum Alert Level 5 | . 1 . 3 2 . 1 3 3 . . . . 1 . 2 1 1 3 . . . . 5 Low Security (%) 47 | . 28 100 7 . . 92 26 74 . . . . 61 100 41 73 21 40 . . . . 5 Level 1 29 | . 71 . 8 69 . 7 47 8 . . . . 38 . 54 26 78 47 . . . . 10 Level 2 12 | . . . 55 30 . . 24 9 . . . . . . 3 . . 10 . . . . 15 Level 3 5 | . . . 29 . . . 1 6 . . . . . . . . . . . . . . 15 Level 4 1 | . . . . . . . . . . . . . . . . . . . . . . . 15 Level 5 2 | . . . . . . . . . . . . . . . . . . . . . . . 26 High Security 1 | . . . . . . . . . . . . . . . . . . . . . . . 10 Max Security . | . . . . . . . . . . . . . . . . . . . . . . . . Squads Dispatched 68 | . 6 . 4 1 . . 5 9 . . . . 5 1 . . 3 6 . . . . 28 Investigation 10 | . 4 . 2 . . . 2 . . . . . . . . . 1 . . . . . 1 Extermination 18 | . . . . . . . . 7 . . . . 4 . . . 1 2 . . . . 4 Reinforcement 19 | . 2 . 2 . . . 3 . . . . . 1 1 . . 1 4 . . . . 5 Assault 21 | . . . . 1 . . . 2 . . . . . . . . . . . . . . 18 Garrison . | . . . . . . . . . . . . . . . . . . . . . . . . Intercept . | . . . . . . . . . . . . . . . . . . . . . . . . Searches Triggered . | . . . . . . . . . . . . . . . . . . . . . . . . Data Miner Redirects 8 | . . . . . . . . . . . . . . . . . 1 . . . . . 7 Construction Impeded 1 | . . . . . . . 1 . . . . . . . . . . . . . . . . Haulers Reinforced 4 | . . . . . . . . . . . . . 1 . . . 1 2 . . . . . Active Scanning Responses . | . . . . . . . . . . . . . . . . . . . . . . . . Cargo Convoy Interrupts . | . . . . . . . . . . . . . . . . . . . . . . . . Stealth | -11 -10 -10 -9 -9 -9 -8 -8 -7 -7 -7 -7 -6 -6 -6 -6 -6 -6 -5 -5 -5 -5 -4 -4 --------- Run | Scr Mat Min Mat Min Exi Min Mat Fac Low Low Dat Pro Fac Ext Cet Arc Hub Fac Upp Upp War Pro Fac Distress Signals 19 | . 1 . 4 . . . 3 1 . . . . . 2 2 . 1 2 . . . . 3 Communications Jammed 40 | . . . . . . . 3 . . . . . . 2 . . 10 4 . . . . 21 Distress Signals 32 | . . . . . . . . . . . . . . 2 . . 10 3 . . . . 17 Times Spotted 464 | . 25 9 44 13 . 11 30 44 19 7 . 9 8 4 17 4 9 22 13 13 42 5 116 Peak Tracking Total 11 | . 3 3 8 4 . 4 5 5 5 4 . 5 2 2 5 1 4 5 4 9 9 3 11 Tactical Retreats 8 | . . . 1 . . 1 . 1 1 . . . . . . . . 1 . 1 . . 2 Traps | -11 -10 -10 -9 -9 -9 -8 -8 -7 -7 -7 -7 -6 -6 -6 -6 -6 -6 -5 -5 -5 -5 -4 -4 ------- Run | Scr Mat Min Mat Min Exi Min Mat Fac Low Low Dat Pro Fac Ext Cet Arc Hub Fac Upp Upp War Pro Fac Traps Triggered 10 | . . . 2 . . . . 1 . . . . 1 2 . . . 2 . . . . 2 Indirectly 2 | . . . . . . . . . . . . . . . . . . . . . . . 2 Trap Hack Attempts . | . . . . . . . . . . . . . . . . . . . . . . . . Triggered . | . . . . . . . . . . . . . . . . . . . . . . . . Disarmed . | . . . . . . . . . . . . . . . . . . . . . . . . Reprogrammed . | . . . . . . . . . . . . . . . . . . . . . . . . Reused . | . . . . . . . . . . . . . . . . . . . . . . . . Traps Extracted . | . . . . . . . . . . . . . . . . . . . . . . . . Installed . | . . . . . . . . . . . . . . . . . . . . . . . . Triggered 6 | . . . . . . . . . . . . . . . . . . . . . 6 . . Machines | -11 -10 -10 -9 -9 -9 -8 -8 -7 -7 -7 -7 -6 -6 -6 -6 -6 -6 -5 -5 -5 -5 -4 -4 ---------- Run | Scr Mat Min Mat Min Exi Min Mat Fac Low Low Dat Pro Fac Ext Cet Arc Hub Fac Upp Upp War Pro Fac Machines Disabled 68 | . 3 1 2 1 . . 1 15 . 1 . . 2 . . 2 3 4 . 2 1 . 30 Max in Single Turn 7 | . 1 . . 1 . . 1 7 . 1 . . . . . 1 1 1 . 2 1 . 3 Garrison Access 1 | . . . . . . . . . . . . . . . . . . . . . . . 1 Network Hub 1 | . . . . . . . . . . . . . . . . . 1 . . . . . . Machines Sabotaged 1 | . . . . . . . . . . . . . . . . . 1 . . . . . . Garrisons Compromised . | . . . . . . . . . . . . . . . . . . . . . . . . Overloaded Fab Kills . | . . . . . . . . . . . . . . . . . . . . . . . . Hacking | -11 -10 -10 -9 -9 -9 -8 -8 -7 -7 -7 -7 -6 -6 -6 -6 -6 -6 -5 -5 -5 -5 -4 -4 --------- Run | Scr Mat Min Mat Min Exi Min Mat Fac Low Low Dat Pro Fac Ext Cet Arc Hub Fac Upp Upp War Pro Fac Machines Accessed 70 | . 7 1 9 . 2 1 9 13 . . 3 . 3 5 . . 3 5 . 1 3 . 5 Terminals 44 | . 5 . 8 . . 1 7 9 . . . . 3 3 . . 3 2 . . . . 3 Fabricators 6 | . . . . . . . . 4 . . . . . . . . . 2 . . . . . Repair Stations 1 | . . . . . . . . . . . . . . . . . . . . . . . 1 Recycling Units 7 | . 2 . 1 . . . 2 . . . . . . 2 . . . . . . . . . Scanalyzers 1 | . . . . . . . . . . . . . . . . . . 1 . . . . . Garrison Access 1 | . . . . . . . . . . . . . . . . . . . . . . . 1 Total Hacks 202 | . 20 1 24 . 2 2 29 24 . . 25 . 13 11 . . 12 20 . 1 4 . 14 Successful 120 | . 13 1 12 . 2 1 22 9 . . 25 . 6 7 . . 5 8 . 1 4 . 4 Failed 80 | . 6 . 12 . . 1 7 14 . . . . 7 4 . . 7 12 . . . . 10 Catastrophic 13 | . . . 1 . . . 1 4 . . . . 2 . . . . 2 . . . . 3 Database Lockouts 2 | . 1 . . . . . . 1 . . . . . . . . . . . . . . . Manual 99 | . 9 . 14 . 2 2 21 9 . 1 . . 9 5 . . 12 13 . . 1 . 1 Terminals 132 | . 18 . 23 . . 2 22 16 . . . . 13 8 . . 12 9 . . . . 9 Fabricators 18 | . . . . . . . . 8 . . . . . . . . . 10 . . . . . Repair Stations 2 | . . . . . . . . . . . . . . . . . . . . . . . 2 Recycling Units 13 | . 2 . 1 . . . 7 . . . . . . 3 . . . . . . . . . Scanalyzers 1 | . . . . . . . . . . . . . . . . . . 1 . . . . . Garrison Access 3 | . . . . . . . . . . . . . . . . . . . . . . . 3 Terminal Hacks 78 | . 8 1 8 . 2 1 13 5 . . 25 . 3 2 . . 2 1 . 1 4 . 2 Record 12 | . . . . . 1 . 1 . . . 6 . . . . . . . . . 4 . . Part Schematic 11 | . 1 . . . . . . . . . 10 . . . . . . . . . . . . Robot Schematic 6 | . . . . . . . . . . . 6 . . . . . . . . . . . . Robot Analysis 3 | . 1 . 2 . . . . . . . . . . . . . . . . . . . . Prototype ID Bank 15 | . 2 . 2 . . 1 4 2 . . 3 . . 1 . . . . . . . . . Open Door 2 | . . 1 . . . . . . . . . . . . . . . . . 1 . . . Open DSF 1 | . . . . . . . . . . . . . 1 . . . . . . . . . . Level Access Points 1 | . . . . . . . . . . . . . . . . . 1 . . . . . . Branch Access Points 6 | . . . 1 . . . 1 1 . . . . 1 . . . . 1 . . . . 1 Terminal Index 3 | . 1 . . . . . 1 . . . . . . . . . 1 . . . . . . Alert Level 8 | . 2 . 1 . . . 3 1 . . . . . 1 . . . . . . . . . Unreport Threat 6 | . . . 2 . . . 2 1 . . . . . . . . . . . . . . 1 Hauler Manifests 2 | . 1 . . . . . . . . . . . 1 . . . . . . . . . . Zone Layout 1 | . . . . . . . 1 . . . . . . . . . . . . . . . . EX-Prototype ID Bank 1 | . . . . . 1 . . . . . . . . . . . . . . . . . . Fabricator Hacks 5 | . . . . . . . . 3 . . . . . . . . . 2 . . . . . Network Status 3 | . . . . . . . . 2 . . . . . . . . . 1 . . . . . Build 2 | . . . . . . . . 1 . . . . . . . . . 1 . . . . . Repair Station Hacks 1 | . . . . . . . . . . . . . . . . . . . . . . . 1 Scan Component 1 | . . . . . . . . . . . . . . . . . . . . . . . 1 Recycling Unit Hacks 5 | . . . . . . . 2 . . . . . . 3 . . . . . . . . . Retrieve Components 5 | . . . . . . . 2 . . . . . . 3 . . . . . . . . . Scanalyzer 1 | . . . . . . . . . . . . . . . . . . 1 . . . . . Insert Component 1 | . . . . . . . . . . . . . . . . . . 1 . . . . . Garrison Access Hacks 1 | . . . . . . . . . . . . . . . . . . . . . . . 1 Seal Access 1 | . . . . . . . . . . . . . . . . . . . . . . . 1 Unauthorized Hacks 29 | . 5 . 4 . . . 7 1 . . . . 3 2 . . 3 4 . . . . . Terminals 18 | . 3 . 3 . . . 3 . . . . . 3 2 . . 3 1 . . . . . Botnet 11 | . 2 . 2 . . . 2 . . . . . 2 1 . . 1 1 . . . . . Disrupt 1 | . . . . . . . . . . . . . . 1 . . . . . . . . . Operators 5 | . 1 . 1 . . . 1 . . . . . 1 . . . 1 . . . . . . Sabotage 1 | . . . . . . . . . . . . . . . . . 1 . . . . . . Fabricators 4 | . . . . . . . . 1 . . . . . . . . . 3 . . . . . Prioritize 1 | . . . . . . . . . . . . . . . . . . 1 . . . . . Liberate 1 | . . . . . . . . . . . . . . . . . . 1 . . . . . Haulers 2 | . . . . . . . . 1 . . . . . . . . . 1 . . . . . Repair Stations . | . . . . . . . . . . . . . . . . . . . . . . . . Recycling Units 7 | . 2 . 1 . . . 4 . . . . . . . . . . . . . . . . Reject 1 | . . . . . . . 1 . . . . . . . . . . . . . . . . Recyclers 1 | . . . . . . . 1 . . . . . . . . . . . . . . . . Tunnel 5 | . 2 . 1 . . . 2 . . . . . . . . . . . . . . . . Scanalyzers . | . . . . . . . . . . . . . . . . . . . . . . . . Garrison Access . | . . . . . . . . . . . . . . . . . . . . . . . . Data Cores Recovered 3 | . 1 . 1 . . . 1 . . . . . . . . . . . . . . . . Used 2 | . 1 . . . . . 1 . . . . . . . . . . . . . . . . Hacking Detections 51 | . 5 . 8 . . 1 8 13 . . . . 2 5 . . 2 3 . . . . 4 Full Trace Events 1 | . . . . . . . . . . . . . . . . . . . . . . . 1 Feedback Events . | . . . . . . . . . . . . . . . . . . . . . . . . Feedback Blocked . | . . . . . . . . . . . . . . . . . . . . . . . . Robot Schematics Acquired 6 | . . . . . . . . . . . 6 . . . . . . . . . . . . Robots Built 3 | . . . . . . . . 3 . . . . . . . . . . . . . . . Authchips . | . . . . . . . . . . . . . . . . . . . . . . . . Time 134 | . . . . . . . . 134 . . . . . . . . . . . . . . . Total Robot Build Rating 12 | . . . . . . . . 12 . . . . . . . . . . . . . . . Part Schematics Acquired 11 | . 1 . . . . . . . . . 10 . . . . . . . . . . . . Parts Built 1 | . . . . . . . . . . . . . . . . . . 1 . . . . . Authchips . | . . . . . . . . . . . . . . . . . . . . . . . . Time 204 | . . . . . . . . . . . . . . . . . . 204 . . . . . Total Part Build Rating 8 | . . . . . . . . . . . . . . . . . . 8 . . . . . Parts Repaired . | . . . . . . . . . . . . . . . . . . . . . . . . Time . | . . . . . . . . . . . . . . . . . . . . . . . . Parts Recycled . | . . . . . . . . . . . . . . . . . . . . . . . . Recycled Matter . | . . . . . . . . . . . . . . . . . . . . . . . . Retrieved Matter . | . . . . . . . . . . . . . . . . . . . . . . . . Retrieved Components 27 | . . . . . . . 10 . . . . . . 17 . . . . . . . . . Parts Scanalyzed . | . . . . . . . . . . . . . . . . . . . . . . . . Part Schematics Acquired . | . . . . . . . . . . . . . . . . . . . . . . . . Parts Damaged . | . . . . . . . . . . . . . . . . . . . . . . . . Bothacking | -11 -10 -10 -9 -9 -9 -8 -8 -7 -7 -7 -7 -6 -6 -6 -6 -6 -6 -5 -5 -5 -5 -4 -4 ------------ Run | Scr Mat Min Mat Min Exi Min Mat Fac Low Low Dat Pro Fac Ext Cet Arc Hub Fac Upp Upp War Pro Fac Used RIF Installer . | . . . . . . . . . . . . . . . . . . . . . . . . Robots Hacked 5 | . . . . . 5 . . . . . . . . . . . . . . . . . . Non-combat 2 | . . . . . 2 . . . . . . . . . . . . . . . . . . Combat 3 | . . . . . 3 . . . . . . . . . . . . . . . . . . Robot Hacks Applied 5 | . . . . . 5 . . . . . . . . . . . . . . . . . . parse_system 5 | . . . . . 5 . . . . . . . . . . . . . . . . . . Relay Couplers Released 4 | . . . . . . . . . . . . . . . . . . . . . . . 4 Programmers 4 | . . . . . . . . . . . . . . . . . . . . . . . 4 Fabnet Peak Effective % . | . . . . . . . . . . . . . . . . . . . . . . . . Robots Rewired 17 | . . . . . . . . . 1 . . 1 . 11 . . . . . . 4 . . Allies Hacked . | . . . . . . . . . . . . . . . . . . . . . . . . Hacks Repelled . | . . . . . . . . . . . . . . . . . . . . . . . . Allies | -11 -10 -10 -9 -9 -9 -8 -8 -7 -7 -7 -7 -6 -6 -6 -6 -6 -6 -5 -5 -5 -5 -4 -4 -------- Run | Scr Mat Min Mat Min Exi Min Mat Fac Low Low Dat Pro Fac Ext Cet Arc Hub Fac Upp Upp War Pro Fac Total Allies 34 | . 1 3 . 1 . . . 3 1 . . 2 3 16 . . . . . . 4 . . Largest Group 13 | . 1 4 4 2 2 2 2 4 2 2 1 2 4 13 13 1 1 1 1 1 5 3 3 Highest-Rated Group 477 | . 60 102 108 103 103 103 107 185 116 116 95 191 211 477 477 126 128 140 147 147 387 294 303 Highest-Rated Ally 190 | . 60 63 72 72 72 72 87 96 96 96 95 104 120 119 125 126 128 140 147 147 162 164 190 Total Orders 27 | . . . . . . . . . . . . 3 . . . . . . 5 4 12 3 . STAY 9 | . . . . . . . . . . . . . . . . . . . 1 1 7 . . FOLLOW 5 | . . . . . . . . . . . . . . . . . . . 1 1 3 . . RETURN 13 | . . . . . . . . . . . . 3 . . . . . . 3 2 2 3 . Ally Attacks 738 | . 39 12 100 7 . 28 56 67 40 13 . 11 28 52 55 8 9 25 12 12 40 10 114 Total Damage 28186 | . 624 304 2132 199 . 546 2390 1766 1080 383 . 379 1247 1256 1424 367 625 1852 710 475 2224 558 7645 Kills 255 | . 17 2 41 5 . 9 22 17 6 4 . 2 13 6 11 3 8 12 3 10 18 2 44 Allies Corrupted 3 | . . . . . . . . 1 . . . . . 2 . . . . . . . . . Allies Melted 2 | . . . . . . . . . . . . 1 . 1 . . . . . . . . . Intel | -11 -10 -10 -9 -9 -9 -8 -8 -7 -7 -7 -7 -6 -6 -6 -6 -6 -6 -5 -5 -5 -5 -4 -4 ------- Run | Scr Mat Min Mat Min Exi Min Mat Fac Low Low Dat Pro Fac Ext Cet Arc Hub Fac Upp Upp War Pro Fac Robot Analysis Total 3 | . 1 . 2 . . . . . . . . . . . . . . . . . . . . Derelict Logs Recovered 11 | . . 1 . 1 . . . . 2 2 . 1 . . . . . . 1 1 . 2 . Drone Launches 16 | . . . . . . . . . . . . 3 . . . . . . 3 6 1 3 . Drone Recoveries 16 | . . . . . . . . . . . . 3 . . . . . . 3 5 2 3 . Exploration | -11 -10 -10 -9 -9 -9 -8 -8 -7 -7 -7 -7 -6 -6 -6 -6 -6 -6 -5 -5 -5 -5 -4 -4 ------------- Run | Scr Mat Min Mat Min Exi Min Mat Fac Low Low Dat Pro Fac Ext Cet Arc Hub Fac Upp Upp War Pro Fac Turns Passed 36482 | . 1629 662 1761 767 850 1105 3303 3498 2706 1854 181 1725 2119 1978 387 1385 851 1422 1969 2276 1392 357 2305 Spaces Moved 15584 | 1 868 374 881 438 657 624 1078 1399 1067 767 78 584 616 721 172 73 306 605 1117 1277 696 198 987 Core 282 | . . . . . 282 . . . . . . . . . . . . . . . . . . Treads 14998 | . 565 374 881 438 375 624 1078 1399 1067 767 78 584 616 721 172 73 306 605 1117 1277 696 198 987 Legs 304 | 1 303 . . . . . . . . . . . . . . . . . . . . . . Wheels . | . . . . . . . . . . . . . . . . . . . . . . . . Hover . | . . . . . . . . . . . . . . . . . . . . . . . . Flight . | . . . . . . . . . . . . . . . . . . . . . . . . Fastest Speed 50 | 120 120 160 160 163 50 163 163 225 230 230 235 235 232 236 160 160 160 160 160 160 160 160 160 Average Speed 185 | 120 146 160 160 163 114 163 212 227 230 231 235 235 232 236 171 160 160 160 160 160 160 160 160 Slowest Speed 243 | 120 160 160 163 163 163 163 243 243 230 235 235 235 236 236 236 160 160 160 160 160 160 160 166 Overloaded Moves . | . . . . . . . . . . . . . . . . . . . . . . . . Propulsion Burnouts . | . . . . . . . . . . . . . . . . . . . . . . . . Robots Hopped . | . . . . . . . . . . . . . . . . . . . . . . . . Cave-ins Triggered . | . . . . . . . . . . . . . . . . . . . . . . . . Exploration Rate (%) 63 | 2 98 81 84 82 70 97 62 36 98 87 68 66 15 82 56 75 26 22 99 91 77 32 27 Regions Visited 23 Branch Regions 16 Pre-discovered Areas 10 | . 2 . 1 . 1 . 2 . 1 . 1 1 . . . . . . . 1 . . . Known Exits Taken 9 | . . . 1 . 1 . . 1 . . . . 1 . . . 1 1 1 1 . 1 . Unknown Exits Taken 14 | 1 1 1 . 1 . 1 1 . 1 1 1 1 . 1 1 1 . . . . 1 . . Scrap Searched 11 | . . . . 2 . . . . 4 . . . . . . . . . 1 3 . 1 . Spaces Dug 19 | . . . . . . . . . . . . . . . . . . 9 . . 5 . 5 Terrain Destroyed 430 | . . 10 . 10 . . . 75 . . . . . . 1 . 1 24 47 61 8 . 193 Melee . | . . . . . . . . . . . . . . . . . . . . . . . . Projectile 143 | . . . . . . . . . . . . . . . 1 . 1 24 14 2 8 . 93 AOE 285 | . . 10 . 10 . . . 75 . . . . . . . . . . 33 59 . . 98 Terrain Rammed . | . . . . . . . . . . . . . . . . . . . . . . . . Walls Destroyed . | . . . . . . . . . . . . . . . . . . . . . . . . Machines Disabled . | . . . . . . . . . . . . . . . . . . . . . . . . Actions | -11 -10 -10 -9 -9 -9 -8 -8 -7 -7 -7 -7 -6 -6 -6 -6 -6 -6 -5 -5 -5 -5 -4 -4 --------- Run | Scr Mat Min Mat Min Exi Min Mat Fac Low Low Dat Pro Fac Ext Cet Arc Hub Fac Upp Upp War Pro Fac Total 21942 | . 1135 410 1128 473 763 688 1964 1598 1263 827 77 914 1269 985 232 1334 640 957 1264 1465 930 227 1399 Wait 4792 | . 150 6 135 23 53 47 733 81 123 38 . 293 593 172 4 1254 313 245 105 118 138 13 155 Move 15562 | . 867 373 880 437 656 623 1077 1398 1066 766 77 583 615 720 171 72 306 604 1116 1276 695 197 987 Hop . | . . . . . . . . . . . . . . . . . . . . . . . . Pick Up 138 | . 18 3 11 . 17 1 25 9 1 3 . . 10 1 5 . . 10 3 1 3 . 17 Fast Attach 56 | . 4 1 2 . 1 1 1 5 2 2 . . 4 1 8 2 3 6 1 1 2 2 7 Attach 47 | . . 2 2 . 5 . 4 3 1 2 . . 7 . 1 . . 5 1 . 1 . 13 Detach 10 | . . . . . 4 . . . . . . . 2 . 1 . . 3 . . . . . Swap 148 | . 4 6 13 2 1 1 20 17 1 . . 7 7 9 3 . 2 8 13 10 3 7 14 Drop 210 | . 15 4 23 . 20 1 31 20 2 6 . 1 12 7 19 2 3 14 4 2 6 3 15 Fire 681 | . 46 14 53 8 . 11 58 56 29 9 . 11 18 6 20 4 13 58 21 21 34 5 186 Melee 6 | . . . . . 6 . . . . . . . . . . . . . . . . . . Ram . | . . . . . . . . . . . . . . . . . . . . . . . . Kick 28 | . 28 . . . . . . . . . . . . . . . . . . . . . . Crush 90 | . 3 1 9 3 . 3 15 7 . 1 . . 1 2 . . . 4 . 36 . . 5 Escape Stasis 6 | . . . . . . . . 2 . . . . . 4 . . . . . . . . . Rewire 168 | . . . . . . . . . 38 . . 19 . 63 . . . . . . 48 . . Trap . | . . . . . . . . . . . . . . . . . . . . . . . . Miscellaneous . | . . . . . . . . . . . . . . . . . . . . . . . . Route ------- -11/Scrapyard -10/Materials (discovered 5 exits: *Mat x3 / *Min x2) -10/Mines -9/Materials (discovered 3 exits: *Mat x2 / *Min) -9/Mines (discovered 3 exits: *Mat x2 / *Exi) -9/Exiles -8/Mines (discovered 2 exits: *Mat x2) -8/Materials (discovered 2 exits: *Fac x2) -7/Factory (discovered 5 exits: *Fac / *Sto x2 / *Low x2) -7/Lower Caves -7/Lower Caves (discovered 2 exits: *Fac / *Dat) -7/Data Miner -6/Proximity Caves -6/Factory (discovered 4 exits: *Low x2 / *Ext x2) -6/Extension (discovered 3 exits: *Fac x2 / [*Cet]) -6/Cetus (discovered 2 exits: *Fac / [*Arc]) -6/Archives (discovered 2 exits: *Hub x2) -6/Hub_04(d) (discovered 4 exits: *Fac x4) -5/Factory (discovered 2 exits: *Upp x2) -5/Upper Caves -5/Upper Caves (discovered 2 exits: *Fac / *War) -5/Warlord -4/Proximity Caves -4/Factory (discovered 2 exits: *Upp x2) History --------- Turn | Location | Event 1 | -11/Scrapyard | Discovered new exit (range 0) 1 | -11/Scrapyard | Entered Materials 82 | -10/Materials | Discovered new exit (range 7) 234 | -10/Materials | Discovered new exit (range 7) 316 | -10/Materials | Build established: Mutant 344 | -10/Materials | Discovered new exit (range 15) 596 | -10/Materials | Discovered new exit (range 12) 788 | -10/Materials | Discovered new exit (range 7) 1105 | -10/Materials | Build established: Scavenger-Mutant 1377 | -10/Materials | Central database locked down 1630 | -10/Materials | Entered Mines 1748 | -10/Mines | Assembled infested the area 1795 | -10/Mines | Core integrity fell below 50% 1798 | -10/Mines | Core integrity fell below 20% 1798 | -10/Mines | Allies destroyed YI-UF0 1862 | -10/Mines | Found the Drone Emporium 1868 | -10/Mines | Found Prototype Device 1869 | -10/Mines | Identified Sensor Drone Bay 1922 | -10/Mines | Joined a pair of Derelicts in attacking an 0b10 outpost 2229 | -10/Mines | Assisted by bots powering up and referring to "LRC-V3" 2277 | -10/Mines | Discovered new exit (range 10) 2292 | -10/Mines | Entered Materials 2292 | -9/Materials | Accompanied by 3 allies 2292 | -9/Materials | Evolved 2 slots: Propulsion x1, Utility x1 2293 | -9/Materials | Identified exit to Mines 3044 | -9/Materials | Build established: Mutant 3279 | -9/Materials | Discovered new exit (range 12) 3556 | -9/Materials | Discovered new exit (range 7) 4053 | -9/Materials | Entered Mines 4056 | -9/Mines | Met a Derelict bent on vengeance 4070 | -9/Mines | Learned Materials emergency access door positions 4261 | -9/Mines | Discovered new exit (range 7) 4731 | -9/Mines | Met a Derelict testing a Signal Generator 4782 | -9/Mines | Discovered new exit (range 13) 4810 | -9/Mines | Deemed a non-threat by the Exiles lab entrance 4811 | -9/Mines | Discovered new exit (range 5) 4820 | -9/Mines | Entered Exiles 4820 | -9/Exiles | Accompanied by 1 ally 4821 | -9/Exiles | Identified exit to Mines 4870 | -9/Exiles | Met 8R-AWN 4897 | -9/Exiles | Met EX-HEX 4970 | -9/Exiles | Met EX-DEC 5014 | -9/Exiles | Learned location of Zion (-6) 5053 | -9/Exiles | Met EX-BIN 5506 | -9/Exiles | Aligned with FarCom system 5507 | -9/Exiles | Given EX-Vault access code 5521 | -9/Exiles | Opened EX-Vault 5533 | -9/Exiles | Warned to stay clear of 0b10 Research branches 5542 | -9/Exiles | Exiles lab attacked by MAIN.C 5567 | -9/Exiles | Found Firepult 5670 | -9/Exiles | Left Exiles lab with Firepult 5670 | -9/Exiles | Entered Mines 5670 | -8/Mines | Accompanied by 1 ally 6318 | -8/Mines | Discovered new exit (range 6) 6768 | -8/Mines | Discovered new exit (range 4) 6775 | -8/Mines | Entered Materials 6775 | -8/Materials | Accompanied by 1 ally 6775 | -8/Materials | Evolved 2 slots: Utility x1, Weapon x1 7087 | -8/Materials | Build established: Skirmisher 7696 | -8/Materials | Discovered new exit (range 3) 8559 | -8/Materials | Discovered new exit (range 5) 10078 | -8/Materials | Entered Factory 10078 | -7/Factory | Evolved 2 slots: Utility x1, Weapon x1 10305 | -7/Factory | Discovered new exit (range 15) 10387 | -7/Factory | Build established: Gunner 10708 | -7/Factory | Identified exit to Storage 10708 | -7/Factory | Identified exit to Lower Caves 10708 | -7/Factory | Central database locked down 11404 | -7/Factory | Fabricated L-41 Fighter? 13278 | -7/Factory | First assault squad dispatched 13576 | -7/Factory | Entered Lower Caves 13765 | -7/Lower Caves | Encountered a Warlord checkpoint 13859 | -7/Lower Caves | Attacked by a faux Warlord 14440 | -7/Lower Caves | Learned location of Extension (-6) 14462 | -7/Lower Caves | Attracted the attention of an 0b10 outpost 15011 | -7/Lower Caves | Learned Factory stockpile data 15047 | -7/Lower Caves | Discovered new exit (range 9) 16282 | -7/Lower Caves | Entered another Lower Caves area 16282 | -7/Lower Caves | Accompanied by 1 ally 16627 | -7/Lower Caves | Encountered a Warlord checkpoint 16630 | -7/Lower Caves | Discovered new exit (range 15) 16837 | -7/Lower Caves | Learned Factory terminal intel 16944 | -7/Lower Caves | Attracted the attention of an 0b10 checkpoint 17666 | -7/Lower Caves | Discovered new exit (range 15) 18026 | -7/Lower Caves | Acquired the password to a Derelict Tinkerer's latest research 18034 | -7/Lower Caves | Learned Factory security intel 18090 | -7/Lower Caves | Found Prototype Special Weapon 18136 | -7/Lower Caves | Entered Data Miner 18136 | -7/Data Miner | Discovered new exit (range 6) 18181 | -7/Data Miner | Met Data Miner 18223 | -7/Data Miner | Learned location of Section 7 (-3) 18223 | -7/Data Miner | Acquired the access code to Warlord's prototype stash 18256 | -7/Data Miner | Received God Mode back door access code from Data Miner 18317 | -7/Data Miner | Entered Proximity Caves 18852 | -6/Proximity Caves | Escorted by Enhanced Grunt 18956 | -6/Proximity Caves | Attracted the attention of an 0b10 outpost 19289 | -6/Proximity Caves | Attracted the attention of an 0b10 checkpoint 19374 | -6/Proximity Caves | Spotted B-75 Beast 19486 | -6/Proximity Caves | Discovered new exit (range 11) 20042 | -6/Proximity Caves | Entered Factory 20042 | -6/Factory | Evolved 2 slots: Propulsion x1, Utility x1 20045 | -6/Factory | Loaded intel: 27 terminal locations 20180 | -6/Factory | Identified exit to DSF 20542 | -6/Factory | Identified exit to Lower Caves 20542 | -6/Factory | Identified exit to Extension 20556 | -6/Factory | Identified Molecular Deconstructor 20793 | -6/Factory | Allied Derelicts emerged from ambush trap array 20849 | -6/Factory | Build established: Mutant 21620 | -6/Factory | Build established: Scavenger-Gunner 22161 | -6/Factory | Entered Extension 22169 | -6/Extension | Rescued a captive Derelict 22169 | -6/Extension | Rescued a captive Derelict 22169 | -6/Extension | Rescued a captive Derelict 22179 | -6/Extension | Rescued a captive Derelict 22185 | -6/Extension | Rescued a captive Derelict 22196 | -6/Extension | Rescued a captive Derelict 22197 | -6/Extension | Rescued a captive Derelict 22202 | -6/Extension | Rescued a captive Derelict 22203 | -6/Extension | Rescued a captive Derelict 22205 | -6/Extension | Rescued a captive Derelict 22205 | -6/Extension | Rescued a captive Derelict 22208 | -6/Extension | Rescued a captive Derelict 22210 | -6/Extension | Rescued a captive Derelict 22949 | -6/Extension | Build established: Commander-Gunner 23385 | -6/Extension | Spotted B-75 Beast 23401 | -6/Extension | Spotted B-75 Beast 23403 | -6/Extension | Allies destroyed B-75 Beast 23411 | -6/Extension | Allies destroyed B-75 Beast 23411 | -6/Extension | Discovered new exit (range 15) 23449 | -6/Extension | Extracted ID and sensor layout for unrecognized location from A7's data core 24067 | -6/Extension | Discovered new exit (range 10) 24070 | -6/Extension | Discovered new exit (range 6) 24139 | -6/Extension | Entered Cetus 24139 | -6/Cetus | Accompanied by 12 allies 24170 | -6/Cetus | Spotted Cetus Guard 24170 | -6/Cetus | Spotted Cetus Guard 24175 | -6/Cetus | Spotted Cetus Guard 24175 | -6/Cetus | Spotted Cetus Guard 24191 | -6/Cetus | Allies destroyed Cetus Guard 24192 | -6/Cetus | Allies destroyed Cetus Guard 24196 | -6/Cetus | Allies destroyed Cetus Guard 24197 | -6/Cetus | Allies destroyed Cetus Guard 24357 | -6/Cetus | Discovered new exit (range 15) 24385 | -6/Cetus | Spotted Cetus Guard 24385 | -6/Cetus | Spotted Cetus Guard 24388 | -6/Cetus | Spotted Cetus Guard 24394 | -6/Cetus | Spotted Cetus Guard 24399 | -6/Cetus | Allies destroyed Cetus Guard 24401 | -6/Cetus | Destroyed Cetus Guard 24404 | -6/Cetus | Destroyed Cetus Guard 24408 | -6/Cetus | Allies destroyed Cetus Guard 24422 | -6/Cetus | Discovered new exit (range 16) 24430 | -6/Cetus | Met Revision 17 24481 | -6/Cetus | Build established: Scavenger-Tank 24526 | -6/Cetus | Entered Archives 24598 | -6/Archives | Discovered new exit (range 16) 24622 | -6/Archives | Discovered new exit (range 16) 25911 | -6/Archives | Entered Hub_04(d) 25996 | -6/Hub_04(d) | Discovered new exit (range 10) 26342 | -6/Hub_04(d) | Identified exit to Factory 26350 | -6/Hub_04(d) | Network Hub disabled 26373 | -6/Hub_04(d) | Incoming investigation squad redirected 26762 | -6/Hub_04(d) | Entered Factory 26762 | -5/Factory | Evolved 2 slots: Utility x2 27044 | -5/Factory | Found Imp. Powered Armor 27162 | -5/Factory | Fabricated Exp. Shield Generator (x1) 27473 | -5/Factory | Identified exit to Upper Caves 27522 | -5/Factory | Build established: Scavenger-Skirmisher 28177 | -5/Factory | Found Prototype Launcher 28177 | -5/Factory | Identified Mni. Smartbomb Launcher 28184 | -5/Factory | Entered Upper Caves 28186 | -5/Upper Caves | Attracted the attention of an 0b10 checkpoint 28221 | -5/Upper Caves | Build established: Scavenger-Tank 29186 | -5/Upper Caves | Learned location of 1 exit from Factory 29785 | -5/Upper Caves | Discovered new exit (range 5) 30150 | -5/Upper Caves | Identified exit to Upper Caves 30153 | -5/Upper Caves | Entered another Upper Caves area 30155 | -5/Upper Caves | Attracted the attention of an 0b10 checkpoint 30230 | -5/Upper Caves | Discovered new exit (range 15) 30265 | -5/Upper Caves | Identified exit to Factory 30490 | -5/Upper Caves | Learned location of Warlord (-5) 30640 | -5/Upper Caves | Encountered a Warlord checkpoint 31685 | -5/Upper Caves | Discovered new exit (range 15) 31735 | -5/Upper Caves | Identified exit to Warlord 31875 | -5/Upper Caves | Build established: Scavenger-Mutant 32429 | -5/Upper Caves | Entered Warlord 32429 | -5/Warlord | Accompanied by 1 ally 32482 | -5/Warlord | System corruption cleaned by Quarantine Array 32549 | -5/Warlord | Received a Watcher feed algorithm from an ecstatic Tinkerer 32656 | -5/Warlord | Learned Armory stockpile data 32657 | -5/Warlord | Learned 4 Research zone layouts 32659 | -5/Warlord | Learned Research fabricator intel 32659 | -5/Warlord | Learned Research garrison access intel 33073 | -5/Warlord | Met Warlord 33088 | -5/Warlord | Opened Warlord's prototype stash 33095 | -5/Warlord | Found Exp. Core Analyzer 33098 | -5/Warlord | Warlord's base attacked by MAIN.C 33115 | -5/Warlord | Found Prototype Reactor 33448 | -5/Warlord | Warlord forces counterattacked 33460 | -5/Warlord | Spotted Striker 33529 | -5/Warlord | Spotted Striker 33539 | -5/Warlord | Allies destroyed Striker 33664 | -5/Warlord | Discovered new exit (range 10) 33699 | -5/Warlord | Spotted B-75 Beast 33701 | -5/Warlord | Spotted Striker 33705 | -5/Warlord | P-70 Sage assimilated allied J8-QHQ(g) 33705 | -5/Warlord | Destroyed B-75 Beast 33710 | -5/Warlord | Spotted B-86 Titan 33721 | -5/Warlord | Destroyed Striker 33735 | -5/Warlord | Allies destroyed B-86 Titan 33773 | -5/Warlord | Warlord base infiltrated, sounded retreat 33821 | -5/Warlord | Entered Proximity Caves 33821 | -4/Proximity Caves | Accompanied by 2 allies 33836 | -4/Proximity Caves | Learned 4 Research zone layouts 33843 | -4/Proximity Caves | Build established: Scavenger-Tank 33983 | -4/Proximity Caves | Learned location of 1 exit from Research 34137 | -4/Proximity Caves | Discovered exit to Factory (range 6) 34178 | -4/Proximity Caves | Entered Factory 34178 | -4/Factory | Accompanied by 2 allies 34178 | -4/Factory | Evolved 2 slots: Propulsion x2 34179 | -4/Factory | Identified exit to Upper Caves 35023 | -4/Factory | Spotted B-86 Titan 35029 | -4/Factory | Destroyed B-86 Titan 35428 | -4/Factory | First assault squad dispatched 35450 | -4/Factory | Spotted B-86 Titan 35467 | -4/Factory | Allies destroyed B-86 Titan 35560 | -4/Factory | Destroyed 7 combat bots 35695 | -4/Factory | Incoming assault squad redirected 35700 | -4/Factory | Incoming assault squad redirected 35945 | -4/Factory | Incoming assault squad redirected 35956 | -4/Factory | Incoming assault squad redirected 35957 | -4/Factory | Incoming assault squad redirected 36193 | -4/Factory | Incoming assault squad redirected 36227 | -4/Factory | Incoming assault squad redirected 36231 | -4/Factory | High security lockdown imminent 36273 | -4/Factory | Core integrity fell below 50% 36311 | -4/Factory | High security lockdown engaged 36432 | -4/Factory | Core integrity fell below 20% 36462 | -4/Factory | Destroyed 9 combat bots 36483 | -4/Factory | Destroyed by L-61 Swordsman with Power Sword Last Messages --------------- 36465_ L-61 Swordsman suffers critical hit (Burn). 36467_ Slug penetrates L-61 Swordsman. 36467_ Coil Gun destroyed. 36468_ Critical hit (Burn: +37). 36469_ Centrium Heavy Treads destroyed. 36470_ Slug penetrates L-61 Swordsman. 36472_ The unstable cave ceiling collapses. 36472_ Slug penetrates L-61 Swordsman. 36473_ L-61 Swordsman heat spikes uncontrollably. 36473_ L-61 Swordsman overheating. 36474_ The unstable cave ceiling collapses. 36474_ L-61 Swordsman overheating. 36475_ Slug penetrates Wall. 36475_ Adv. KE Penetrator severed. 36475_ Critical hit (Burn: +50). 36478_ Gauss Rifle destroyed. 36480_ Integrated Corrupted Coil Gun (+4). 36481_ Destroyed Power Sword. 36481_ Slug penetrates Earth. 36481_ Slug penetrates L-61 Swordsman. Map ----- +----------------------------------------------------+ | ?????????????????????????????????????????????????? | | ?????????????????????????????????????????????????? | | ?????????????????????????????????????????????????? | | ?????????????????????????????????????????????????? | | ????? ???????????????????????????????????????? | | ????? ?????????????????????????????????????? | | ????? ? ???????????????????????????????????? | | ????? ? ????????????????????????????????? | | ????? ? #?C????????????????????????????? | | ###### ## #??????????????????????????????? | | # #??????????????????????????????? | | #! #??????????????????????????????? | | # #???+??????????????????????????? | | # " #??? ??????????????????????????? | | # " % #??? ????????##########????????? | | # ""[ # #??# #???????# ! = #????????? | | ?? #%[ #??# +???????# #????????? | | #### ##### #??# #???????# #????????? | | %% #??# #???????# #????????? | | !! %% ! ??# ???????# #????????? | | % ! !%* ??# #???????# #????????? | | [!% %=* ## #???????# #????##??? | | * g%! # #####???# ?##?## ?## | | ####### # m*! ## #????? ???? # # ### | | mg l;;!#########+#############% | | %! ==!l@= *! | | =! !%=%* =% %! | | !/= !%!==/! %! != * | | [ """ "" %%= = = = % ! = [[ | | """ "" *==% %!%=*! %= = * =![ | | """ "" !#/ !%;;# #@# ################ * | | ! # # != *=[[ # ????????### = | | """ """ # g/ ##??????????#=! | | """ """ ## # ![ [== #"" ! #??????????##! | | """ """ # ! "" #?########### | | # = = #"T ![#? # | | ############ [ ! #"" [!#??! !# | | # !![% [ "" #??? # | | # ==%#[ "" # #??"""""" # | | # * """ ###########?""""""" # | | # |* #####?????????? """"""" # | | # # ???????????????# """"""" + | | # ! #??????????????????# # | | # #??????????????????# """"""" + | | # #??????????????????? """"""" ### | | # #????????????????????""""""" # # | | ###########+#####?????????????????????"""""" ### | | ### #### #???????????????????????? #?? | | # #?????????????????????????########?? | | """"*# #??????????????????????????????????? | +----------------------------------------------------+ Best States ------------- Heat Dissipation 67 Energy Generation 25 Energy Capacity 350 Matter Stores 300 Matter Capacity 300 Sight Range 16 Terrain Scan Density 10 Jamming Range 12 Armor Coverage 1250 Weapon Cycling 30 Evasion (%) 55 Targeting Accuracy 8 Recoil Reduction 6 Salvage Targeting 1 Item Schematics ----------------- Huge Storage Unit | -10/Materials | Hacked Combat Drone Bay | -7/Data Miner | Free Lgt. Regenerative Plating | -7/Data Miner | Free Biomechanical Wings | -7/Data Miner | Free Thermal Defense Suite | -7/Data Miner | Free Imp. Heavy Laser | -7/Data Miner | Free Field Propulsion Drive | -7/Data Miner | Free Adv. Shield Generator | -7/Data Miner | Free Imp. Plasma Cutter | -7/Data Miner | Free Imp. Proton Missile Launcher | -7/Data Miner | Free Imp. Antigrav System | -7/Data Miner | Free Robot Schematics ------------------ M-28 Smith | -7/Data Miner | Free G-47 Trooper | -7/Data Miner | Free G-50 Soldier | -7/Data Miner | Free R-10 Processor | -7/Data Miner | Free E-15 Imp | -7/Data Miner | Free L-41 Fighter | -7/Data Miner | Free Fabricated ------------ L-41 Fighter | x3 | -7/Factory | Preloaded Exp. Shield Generator | x1 | -5/Factory | Preloaded Alien Tech Used ----------------- None Achievements -------------- None Challenges ------------ None Player 2 | -11 -10 -10 -9 -9 -9 -8 -8 -7 -7 -7 -7 -6 -6 -6 -6 -6 -6 -5 -5 -5 -5 -4 -4 ---------- Run | Scr Mat Min Mat Min Exi Min Mat Fac Low Low Dat Pro Fac Ext Cet Arc Hub Fac Upp Upp War Pro Fac Slots Evolved 12 | . . 2 . . . 2 2 . . . . 2 . . . . 2 . . . . 2 . Power 1 | . . . . . . 1 . . . . . . . . . . . . . . . . . Propulsion 4 | . . . . . . 1 1 . . . . . . . . . 1 . . . . 1 . Utility 5 | . . 1 . . . . 1 . . . . 2 . . . . . . . . . 1 . Weapon 2 | . . 1 . . . . . . . . . . . . . . 1 . . . . . . Parts Attached 253 | . 26 3 13 . 4 1 17 18 18 1 . 2 11 5 3 4 2 26 7 2 9 1 80 Parts Lost 63 | . 1 . . . . . 2 1 7 1 . 1 . . . 2 . 4 2 . 1 1 40 Damage Taken 11615 | . 309 309 318 106 . 165 763 452 1068 43 . 240 159 113 284 251 142 821 259 173 516 175 4949 Core 1589 | . 46 61 39 10 . 39 86 26 157 . . 66 . 32 21 . 12 37 67 . 50 8 832 Player 2/Cogmind (%) 66 | . 100 38 41 55 . 100 51 36 83 . . 100 . 100 63 . 66 66 67 . 73 20 71 Absorbed by Shields 784 | . . . . . . . . 171 213 . . . . . . . . . . . 193 168 39 Damage Inflicted 24772 | . 624 304 1494 199 . 335 2307 1410 1080 326 . 293 1001 206 1015 367 625 1852 710 475 1946 558 7645 Player 2/Cogmind (%) 39 | . 46 44 53 32 . 62 50 29 43 41 . 45 59 33 45 72 40 33 25 18 50 58 35 Combat Hostiles Destroyed 168 | . 12 2 16 5 . 6 16 12 6 3 . 2 7 1 5 3 4 8 3 10 15 2 30 Player 2/Cogmind (%) 42 | . 57 25 61 38 . 75 53 33 31 50 . 16 87 25 35 75 57 33 18 47 62 40 31 Game ------ Seed AdvancedTrapSword Manual? 0 Play Time 03:15:52 Cumulative 714.5 hours Start 2022.05.10 @ 17:08:58 End 2022.05.10 @ 21:50:30 Sessions 3 Manual Loads 0 Difficulty Rogue Special Mode AFD2020/Player2 Game No. 316 Rogue 315 Adventurer 1 Explorer 0 Win Type - Total 80 Types 23/9/12/3/2/1/29/1/0 Lore% 98 Gallery% 99 Achievement% 89 Wizard Run 0 Options --------- ASCII 1 Keyboard 1 Movement Numpad Keybinds 0 Fullscreen 0 Font 18/Smallcaps Map View 76x50 Tactical HUD 1 Map Filters NONE Filters NONE Steam X RUN: 2396fd70-151a-4d33-9672-56b0b0b87fa4